[Event "Titled Tuesday Blitz November 22 Early 2022"]
[White "Jeet, Jain"]
[Black "Deac, Bogdan-Daniel"]
[WhiteFideId "5073022"]
[BlackFideId "1226380"]
[WhiteElo "2067"]
[BlackElo "2648"]
[Result "0-1"]
[Round "01"]
[TimeControl "180+1"]
[Date "2022.11.22"]
[WhiteClock "0:00:05"]
[BlackClock "0:00:15"]

1. Nf3 {[%clk 0:02:59]}  g6 {[%clk 0:02:57]} 2. d4 {[%clk 0:02:58]}  Bg7 {[%clk 0:02:55]} 3. Nc3 {[%clk 0:02:55]}  d6 {[%clk 0:02:53]} 4. e4 {[%clk 0:02:55]}  Nf6 {[%clk 0:02:52]} 5. h3 {[%clk 0:02:54]}  O-O {[%clk 0:02:50]} 6. Bf4 {[%clk 0:02:53]}  c6 {[%clk 0:02:49]} 7. Qd2 {[%clk 0:02:52]}  Qa5 {[%clk 0:02:46]} 8. e5 {[%clk 0:02:44]}  dxe5 {[%clk 0:02:41]} 9. Nxe5 {[%clk 0:02:44]}  Be6 {[%clk 0:02:33]} 10. Nc4 {[%clk 0:02:35]}  Qd8 {[%clk 0:02:25]} 11. a4 {[%clk 0:02:26]}  Na6 {[%clk 0:02:08]} 12. Be2 {[%clk 0:02:15]}  Nd5 {[%clk 0:02:02]} 13. Nxd5 {[%clk 0:02:06]}  Qxd5 {[%clk 0:02:01]} 14. Ne3 {[%clk 0:01:19]}  Qe4 {[%clk 0:01:35]} 15. Bg5 {[%clk 0:01:06]}  Qxd4 {[%clk 0:01:28]} 16. Qxd4 {[%clk 0:01:03]}  Bxd4 {[%clk 0:01:29]} 17. c3 {[%clk 0:00:57]}  Bf6 {[%clk 0:01:17]} 18. Bxf6 {[%clk 0:00:56]}  exf6 {[%clk 0:01:18]} 19. Bxa6 {[%clk 0:00:55]}  bxa6 {[%clk 0:01:19]} 20. O-O-O {[%clk 0:00:46]}  f5 {[%clk 0:01:14]} 21. Rd6 {[%clk 0:00:43]}  Rfc8 {[%clk 0:01:14]} 22. f4 {[%clk 0:00:41]}  h5 {[%clk 0:01:07]} 23. Rhd1 {[%clk 0:00:40]}  Kf8 {[%clk 0:01:03]} 24. Kc2 {[%clk 0:00:32]}  Rab8 {[%clk 0:01:01]} 25. c4 {[%clk 0:00:30]}  Rb4 {[%clk 0:00:56]} 26. b3 {[%clk 0:00:29]}  Ke7 {[%clk 0:00:51]} 27. R6d3 {[%clk 0:00:29]}  a5 {[%clk 0:00:50]} 28. Kc3 {[%clk 0:00:28]}  Rcb8 {[%clk 0:00:50]} 29. Rb1 {[%clk 0:00:28]}  Rxa4 {[%clk 0:00:43]} 30. Rb2 {[%clk 0:00:15]}  Rab4 {[%clk 0:00:30]} 31. Nc2 {[%clk 0:00:15]}  R4b6 {[%clk 0:00:30]} 32. Nd4 {[%clk 0:00:15]}  c5 {[%clk 0:00:28]} 33. Nb5 {[%clk 0:00:15]}  a6 {[%clk 0:00:23]} 34. Nc7 {[%clk 0:00:15]}  a4 {[%clk 0:00:23]} 35. Kc2 {[%clk 0:00:06]}  Bxc4 {[%clk 0:00:15]} 36. Nd5+ {[%clk 0:00:04]}  Bxd5 {[%clk 0:00:15]} 37. Rxd5 {[%clk 0:00:05]}  Rxb3 {[%clk 0:00:15]} 38. Rxb3 {[%clk 0:00:05]}  axb3+ {[%clk 0:00:15]} 39. Kb2 {[%clk 0:00:06]}  Rb5 {[%clk 0:00:15]} 40. h4 {[%clk 0:00:05]}  c4 {[%clk 0:00:15]} 41. Rd4 {[%clk 0:00:05]}  c3+ {[%clk 0:00:15]} 0-1


[Site "https://www.chess.com"]

[Event "Titled Tuesday Blitz November 22 Early 2022"]
[White "Johnson, Ben"]
[Black "Danielian, Vardan"]
[WhiteFideId "2010917"]
[BlackFideId "13301594"]
[WhiteElo "2151"]
[BlackElo "2550"]
[Result "0-1"]
[Round "01"]
[TimeControl "180+1"]
[Date "2022.11.23"]
[WhiteClock "0:00:28"]
[BlackClock "0:01:29"]

1. Nf3 {[%clk 0:03:00]}  Nf6 {[%clk 0:02:59]} 2. c4 {[%clk 0:02:59]}  g6 {[%clk 0:02:59]} 3. b3 {[%clk 0:02:58]}  Bg7 {[%clk 0:03:00]} 4. Bb2 {[%clk 0:02:59]}  O-O {[%clk 0:03:00]} 5. g3 {[%clk 0:03:00]}  d6 {[%clk 0:03:00]} 6. d4 {[%clk 0:03:00]}  e5 {[%clk 0:02:59]} 7. dxe5 {[%clk 0:03:00]}  Ng4 {[%clk 0:02:59]} 8. Bg2 {[%clk 0:02:58]}  Nc6 {[%clk 0:02:58]} 9. O-O {[%clk 0:02:54]}  Re8 {[%clk 0:02:58]} 10. Qd2 {[%clk 0:02:44]}  Ncxe5 {[%clk 0:02:55]} 11. Nxe5 {[%clk 0:02:31]}  Nxe5 {[%clk 0:02:54]} 12. e4 {[%clk 0:02:25]}  Bh3 {[%clk 0:02:32]} 13. f4 {[%clk 0:02:10]}  Bxg2 {[%clk 0:02:30]} 14. Kxg2 {[%clk 0:02:09]}  Nd7 {[%clk 0:02:16]} 15. Bxg7 {[%clk 0:02:08]}  Kxg7 {[%clk 0:02:16]} 16. Nc3 {[%clk 0:02:04]}  Nf6 {[%clk 0:02:14]} 17. Rae1 {[%clk 0:01:58]}  Kg8 {[%clk 0:02:12]} 18. h3 {[%clk 0:01:51]}  Qe7 {[%clk 0:02:10]} 19. Qd4 {[%clk 0:01:47]}  c6 {[%clk 0:02:04]} 20. Rf2 {[%clk 0:01:44]}  a6 {[%clk 0:02:04]} 21. Rfe2 {[%clk 0:01:38]}  Rad8 {[%clk 0:02:02]} 22. Kf3 {[%clk 0:01:28]}  Nd7 {[%clk 0:01:54]} 23. b4 {[%clk 0:01:22]}  Nf8 {[%clk 0:01:49]} 24. a3 {[%clk 0:01:15]}  h5 {[%clk 0:01:48]} 25. Qb6 {[%clk 0:00:45]}  h4 {[%clk 0:01:37]} 26. g4 {[%clk 0:00:44]}  g5 {[%clk 0:01:38]} 27. Qe3 {[%clk 0:00:35]}  gxf4 {[%clk 0:01:34]} 28. Qxf4 {[%clk 0:00:36]}  Ng6 {[%clk 0:01:33]} 29. Qh6 {[%clk 0:00:31]}  Qe5 {[%clk 0:01:30]} 30. Rg2 {[%clk 0:00:28]}  Qxc3+ {[%clk 0:01:29]} 0-1


[Site "https://www.chess.com"]

[Event "Titled Tuesday Blitz November 22 Early 2022"]
[White "Kamsky, Gata"]
[Black "Fiol, Fabrice"]
[WhiteFideId "2000024"]
[BlackFideId "611670"]
[WhiteElo "2666"]
[BlackElo "2448"]
[Result "1-0"]
[Round "01"]
[TimeControl "180+1"]
[Date "2022.11.23"]
[WhiteClock "0:01:23"]
[BlackClock "0:00:20"]

1. e4 {[%clk 0:02:58]}  c5 {[%clk 0:03:00]} 2. Nf3 {[%clk 0:02:58]}  e6 {[%clk 0:03:00]} 3. d4 {[%clk 0:02:56]}  cxd4 {[%clk 0:03:00]} 4. Nxd4 {[%clk 0:02:57]}  a6 {[%clk 0:03:00]} 5. Bd3 {[%clk 0:02:50]}  Nc6 {[%clk 0:03:00]} 6. Nxc6 {[%clk 0:02:44]}  dxc6 {[%clk 0:03:01]} 7. O-O {[%clk 0:02:37]}  e5 {[%clk 0:03:01]} 8. a4 {[%clk 0:02:35]}  Nf6 {[%clk 0:03:00]} 9. Nd2 {[%clk 0:02:32]}  Bc5 {[%clk 0:02:54]} 10. a5 {[%clk 0:02:30]}  Bg4 {[%clk 0:02:51]} 11. Qe1 {[%clk 0:02:28]}  Qc7 {[%clk 0:02:45]} 12. Nb3 {[%clk 0:02:23]}  Ba7 {[%clk 0:02:41]} 13. Be3 {[%clk 0:02:22]}  O-O {[%clk 0:02:40]} 14. Bxa7 {[%clk 0:02:21]}  Rxa7 {[%clk 0:02:41]} 15. Qc3 {[%clk 0:02:14]}  Nd7 {[%clk 0:02:35]} 16. Bc4 {[%clk 0:02:12]}  Raa8 {[%clk 0:02:30]} 17. f3 {[%clk 0:02:07]}  Bh5 {[%clk 0:02:29]} 18. Rfd1 {[%clk 0:02:04]}  Rad8 {[%clk 0:02:27]} 19. Rd3 {[%clk 0:02:03]}  Nf6 {[%clk 0:01:21]} 20. Qb4 {[%clk 0:01:43]}  Rxd3 {[%clk 0:01:17]} 21. Bxd3 {[%clk 0:01:42]}  Nd7 {[%clk 0:01:09]} 22. Bc4 {[%clk 0:01:38]}  Kh8 {[%clk 0:01:08]} 23. Rd1 {[%clk 0:01:36]}  Re8 {[%clk 0:01:04]} 24. Qd6 {[%clk 0:01:32]}  Qxd6 {[%clk 0:01:02]} 25. Rxd6 {[%clk 0:01:31]}  Nf8 {[%clk 0:00:42]} 26. Nc5 {[%clk 0:01:30]}  Rb8 {[%clk 0:00:41]} 27. g4 {[%clk 0:01:27]}  Bg6 {[%clk 0:00:41]} 28. h4 {[%clk 0:01:28]}  h5 {[%clk 0:00:41]} 29. g5 {[%clk 0:01:27]}  Kh7 {[%clk 0:00:34]} 30. Kf2 {[%clk 0:01:26]}  b5 {[%clk 0:00:25]} 31. axb6 {[%clk 0:01:24]}  Rxb6 {[%clk 0:00:25]} 32. b3 {[%clk 0:01:23]}  a5 {[%clk 0:00:25]} 33. Rd8 {[%clk 0:01:23]}  Ne6 {[%clk 0:00:21]} 34. Bxe6 {[%clk 0:01:22]}  fxe6 {[%clk 0:00:20]} 35. Nd7 {[%clk 0:01:23]} 1-0


[Site "https://www.chess.com"]

[Event "Titled Tuesday Blitz November 22 Early 2022"]
[White "Karas, Marek"]
[Black "Indjic, Aleksandar"]
[WhiteFideId "14928558"]
[BlackFideId "911925"]
[WhiteElo "2220"]
[BlackElo "2592"]
[Result "0-1"]
[Round "01"]
[TimeControl "180+1"]
[Date "2022.11.22"]
[WhiteClock "0:00:02"]
[BlackClock "0:00:19"]

1. d4 {[%clk 0:02:58]}  Nf6 {[%clk 0:02:57]} 2. Nf3 {[%clk 0:02:58]}  e6 {[%clk 0:02:57]} 3. c4 {[%clk 0:02:58]}  c5 {[%clk 0:02:57]} 4. g3 {[%clk 0:02:56]}  cxd4 {[%clk 0:02:56]} 5. Nxd4 {[%clk 0:02:57]}  Qc7 {[%clk 0:02:56]} 6. Qd3 {[%clk 0:02:52]}  Nc6 {[%clk 0:02:49]} 7. Nxc6 {[%clk 0:02:50]}  dxc6 {[%clk 0:02:49]} 8. Bg2 {[%clk 0:02:47]}  e5 {[%clk 0:02:48]} 9. Nc3 {[%clk 0:02:45]}  Be6 {[%clk 0:02:48]} 10. b3 {[%clk 0:02:42]}  Rd8 {[%clk 0:02:44]} 11. Qc2 {[%clk 0:02:42]}  h5 {[%clk 0:02:39]} 12. h4 {[%clk 0:02:40]}  Be7 {[%clk 0:02:32]} 13. Bg5 {[%clk 0:02:33]}  Ng4 {[%clk 0:02:29]} 14. Bxe7 {[%clk 0:02:31]}  Qxe7 {[%clk 0:02:29]} 15. Rd1 {[%clk 0:02:30]}  O-O {[%clk 0:02:28]} 16. O-O {[%clk 0:02:29]}  f5 {[%clk 0:02:23]} 17. Rxd8 {[%clk 0:02:27]}  Rxd8 {[%clk 0:02:23]} 18. Rd1 {[%clk 0:02:28]}  g5 {[%clk 0:02:22]} 19. Rxd8+ {[%clk 0:02:26]}  Qxd8 {[%clk 0:02:21]} 20. Qd1 {[%clk 0:02:20]}  Qxd1+ {[%clk 0:02:07]} 21. Nxd1 {[%clk 0:02:21]}  gxh4 {[%clk 0:02:07]} 22. gxh4 {[%clk 0:02:21]}  Kf7 {[%clk 0:02:07]} 23. e3 {[%clk 0:02:15]}  Ke7 {[%clk 0:02:07]} 24. Kf1 {[%clk 0:02:09]}  Kd6 {[%clk 0:02:07]} 25. Ke1 {[%clk 0:02:09]}  Kc5 {[%clk 0:02:07]} 26. Kd2 {[%clk 0:02:09]}  Kb4 {[%clk 0:02:07]} 27. Kc2 {[%clk 0:02:07]}  a5 {[%clk 0:01:57]} 28. Kb2 {[%clk 0:02:06]}  a4 {[%clk 0:01:56]} 29. Bf3 {[%clk 0:01:52]}  f4 {[%clk 0:01:52]} 30. exf4 {[%clk 0:01:42]}  exf4 {[%clk 0:01:48]} 31. Be4 {[%clk 0:01:35]}  Ne5 {[%clk 0:01:33]} 32. f3 {[%clk 0:01:20]}  axb3 {[%clk 0:01:20]} 33. axb3 {[%clk 0:01:20]}  b5 {[%clk 0:01:18]} 34. cxb5 {[%clk 0:01:15]}  cxb5 {[%clk 0:01:19]} 35. Nc3 {[%clk 0:00:58]}  Bxb3 {[%clk 0:01:08]} 36. Ne2 {[%clk 0:00:58]}  Bf7 {[%clk 0:00:53]} 37. Nxf4 {[%clk 0:00:54]}  Kc4 {[%clk 0:00:53]} 38. Ne2 {[%clk 0:00:34]}  b4 {[%clk 0:00:52]} 39. Bc2 {[%clk 0:00:23]}  Kc5 {[%clk 0:00:47]} 40. Be4 {[%clk 0:00:19]}  Nc4+ {[%clk 0:00:41]} 41. Kc2 {[%clk 0:00:19]}  Ne3+ {[%clk 0:00:41]} 42. Kb2 {[%clk 0:00:18]}  Ng2 {[%clk 0:00:41]} 43. Ng3 {[%clk 0:00:08]}  Nxh4 {[%clk 0:00:41]} 44. f4 {[%clk 0:00:08]}  Kd4 {[%clk 0:00:37]} 45. Kc2 {[%clk 0:00:05]}  Ke3 {[%clk 0:00:37]} 46. f5 {[%clk 0:00:05]}  Kf4 {[%clk 0:00:37]} 47. Nxh5+ {[%clk 0:00:06]}  Kxe4 {[%clk 0:00:35]} 48. Ng3+ {[%clk 0:00:04]}  Kd4 {[%clk 0:00:35]} 49. Kb2 {[%clk 0:00:04]}  Nf3 {[%clk 0:00:34]} 50. Ne2+ {[%clk 0:00:03]}  Kc5 {[%clk 0:00:33]} 51. Nf4 {[%clk 0:00:02]}  Ne5 {[%clk 0:00:32]} 52. f6 {[%clk 0:00:02]}  Kd4 {[%clk 0:00:28]} 53. Ne2+ {[%clk 0:00:02]}  Ke3 {[%clk 0:00:26]} 54. Ng3 {[%clk 0:00:02]}  Nd3+ {[%clk 0:00:25]} 55. Kc2 {[%clk 0:00:01]}  b3+ {[%clk 0:00:20]} 56. Kb1 {[%clk 0:00:02]}  Kd4 {[%clk 0:00:19]} 57. Ne2+ {[%clk 0:00:02]}  Kc4 {[%clk 0:00:19]} 0-1


[Site "https://www.chess.com"]

[Event "Titled Tuesday Blitz November 22 Early 2022"]
[White "Kilic, Eray"]
[Black "Mohammed, Zozek Salah Mohammed"]
[WhiteFideId "44517173"]
[BlackFideId "4803361"]
[WhiteElo "2328"]
[BlackElo "2199"]
[Result "1-0"]
[Round "01"]
[TimeControl "180+1"]
[Date "2022.11.23"]
[WhiteClock "0:02:37"]
[BlackClock "0:02:08"]

1. e4 {[%clk 0:03:00]}  c5 {[%clk 0:02:55]} 2. Nf3 {[%clk 0:03:01]}  d6 {[%clk 0:02:54]} 3. d4 {[%clk 0:03:01]}  cxd4 {[%clk 0:02:54]} 4. Nxd4 {[%clk 0:03:02]}  Nf6 {[%clk 0:02:54]} 5. Nc3 {[%clk 0:03:02]}  a6 {[%clk 0:02:53]} 6. h3 {[%clk 0:03:02]}  e5 {[%clk 0:02:52]} 7. Nde2 {[%clk 0:03:02]}  h5 {[%clk 0:02:52]} 8. Bg5 {[%clk 0:03:01]}  Be6 {[%clk 0:02:49]} 9. g3 {[%clk 0:03:01]}  Nbd7 {[%clk 0:02:47]} 10. Bg2 {[%clk 0:03:00]}  Be7 {[%clk 0:02:46]} 11. O-O {[%clk 0:02:59]}  Rc8 {[%clk 0:02:44]} 12. Qd2 {[%clk 0:02:56]}  b5 {[%clk 0:02:43]} 13. a3 {[%clk 0:02:56]}  Qc7 {[%clk 0:02:40]} 14. Rad1 {[%clk 0:02:54]}  Nb6 {[%clk 0:02:32]} 15. b3 {[%clk 0:02:42]}  Nbd7 {[%clk 0:02:22]} 16. Nd5 {[%clk 0:02:36]}  Bxd5 {[%clk 0:02:13]} 17. exd5 {[%clk 0:02:37]}  Qxc2 {[%clk 0:02:08]} 18. Rc1 {[%clk 0:02:37]} 1-0


[Site "https://www.chess.com"]

[Event "Titled Tuesday Blitz November 22 Early 2022"]
[White "Kouskoutis, Georgios-Alexandros"]
[Black "Bluebaum, Matthias"]
[WhiteFideId "4234049"]
[BlackFideId "24651516"]
[WhiteElo "2187"]
[BlackElo "2633"]
[Result "0-1"]
[Round "01"]
[TimeControl "180+1"]
[Date "2022.11.22"]
[WhiteClock "0:00:01"]
[BlackClock "0:00:26"]

1. Nf3 {[%clk 0:03:00]}  d5 {[%clk 0:02:58]} 2. g3 {[%clk 0:02:57]}  Nf6 {[%clk 0:02:57]} 3. Bg2 {[%clk 0:02:58]}  e6 {[%clk 0:02:58]} 4. O-O {[%clk 0:02:56]}  Be7 {[%clk 0:02:59]} 5. b3 {[%clk 0:02:56]}  O-O {[%clk 0:02:59]} 6. Bb2 {[%clk 0:02:56]}  a5 {[%clk 0:02:59]} 7. c4 {[%clk 0:02:53]}  c6 {[%clk 0:02:59]} 8. d3 {[%clk 0:02:53]}  Nbd7 {[%clk 0:02:48]} 9. Nbd2 {[%clk 0:02:52]}  a4 {[%clk 0:02:48]} 10. Qc2 {[%clk 0:02:43]}  a3 {[%clk 0:02:43]} 11. Bc3 {[%clk 0:02:35]}  c5 {[%clk 0:02:37]} 12. e3 {[%clk 0:02:32]}  b6 {[%clk 0:02:35]} 13. d4 {[%clk 0:02:15]}  Bb7 {[%clk 0:02:35]} 14. dxc5 {[%clk 0:02:09]}  bxc5 {[%clk 0:02:30]} 15. Rfd1 {[%clk 0:02:02]}  Qb6 {[%clk 0:02:29]} 16. Rac1 {[%clk 0:02:00]}  Rfd8 {[%clk 0:02:27]} 17. cxd5 {[%clk 0:01:43]}  exd5 {[%clk 0:02:26]} 18. Ne5 {[%clk 0:01:44]}  Nxe5 {[%clk 0:02:23]} 19. Bxe5 {[%clk 0:01:45]}  Rac8 {[%clk 0:02:23]} 20. Qf5 {[%clk 0:01:35]}  h6 {[%clk 0:01:54]} 21. e4 {[%clk 0:00:58]}  Qe6 {[%clk 0:01:17]} 22. Qxe6 {[%clk 0:00:53]}  fxe6 {[%clk 0:01:18]} 23. Bh3 {[%clk 0:00:48]}  Rc6 {[%clk 0:01:17]} 24. exd5 {[%clk 0:00:43]}  exd5 {[%clk 0:01:18]} 25. Nf1 {[%clk 0:00:29]}  d4 {[%clk 0:00:54]} 26. Bg2 {[%clk 0:00:24]}  Nd5 {[%clk 0:00:48]} 27. Bf4 {[%clk 0:00:13]}  Nxf4 {[%clk 0:00:46]} 28. gxf4 {[%clk 0:00:12]}  Rg6 {[%clk 0:00:46]} 29. Ng3 {[%clk 0:00:12]}  Bxg2 {[%clk 0:00:46]} 30. Kxg2 {[%clk 0:00:13]}  Bd6 {[%clk 0:00:44]} 31. Kf1 {[%clk 0:00:09]}  Rf6 {[%clk 0:00:41]} 32. Ne4 {[%clk 0:00:08]}  Rf5 {[%clk 0:00:40]} 33. Nxd6 {[%clk 0:00:06]}  Rxd6 {[%clk 0:00:41]} 34. Rd3 {[%clk 0:00:05]}  Rdf6 {[%clk 0:00:40]} 35. Rc2 {[%clk 0:00:05]}  Rxf4 {[%clk 0:00:40]} 36. b4 {[%clk 0:00:03]}  c4 {[%clk 0:00:40]} 37. Rxc4 {[%clk 0:00:02]}  Rxf2+ {[%clk 0:00:40]} 38. Kg1 {[%clk 0:00:02]}  Rxa2 {[%clk 0:00:41]} 39. Rdxd4 {[%clk 0:00:02]}  Ra1+ {[%clk 0:00:41]} 40. Kg2 {[%clk 0:00:02]}  a2 {[%clk 0:00:42]} 41. Rc8+ {[%clk 0:00:03]}  Kh7 {[%clk 0:00:42]} 42. Ra8 {[%clk 0:00:03]}  Rg6+ {[%clk 0:00:34]} 43. Kh3 {[%clk 0:00:03]}  h5 {[%clk 0:00:22]} 44. Rd2 {[%clk 0:00:03]}  Rb1 {[%clk 0:00:23]} 45. Raxa2 {[%clk 0:00:02]}  Rb3+ {[%clk 0:00:24]} 46. Kh4 {[%clk 0:00:03]}  Rg4+ {[%clk 0:00:24]} 47. Kxh5 {[%clk 0:00:03]}  Rbxb4 {[%clk 0:00:25]} 48. Rd6 {[%clk 0:00:03]}  g6+ {[%clk 0:00:25]} 49. Rxg6 {[%clk 0:00:02]}  Rxg6 {[%clk 0:00:26]} 50. Ra7+ {[%clk 0:00:01]}  Rg7 {[%clk 0:00:26]} 0-1


[Site "https://www.chess.com"]

[Event "Titled Tuesday Blitz November 22 Early 2022"]
[White "Kovacevic, Radmila"]
[Black "Principe, Gerson"]
[WhiteFideId "933171"]
[BlackFideId "3804550"]
[WhiteElo "2208"]
[BlackElo "2280"]
[Result "1-0"]
[Round "01"]
[TimeControl "180+1"]
[Date "2022.11.23"]
[WhiteClock "0:01:30"]
[BlackClock "0:00:18"]

1. e4 {[%clk 0:02:56]}  c5 {[%clk 0:02:59]} 2. Be2 {[%clk 0:02:56]}  Nc6 {[%clk 0:02:59]} 3. f4 {[%clk 0:02:56]}  g6 {[%clk 0:02:58]} 4. Nf3 {[%clk 0:02:56]}  Bg7 {[%clk 0:02:59]} 5. O-O {[%clk 0:02:54]}  d5 {[%clk 0:02:56]} 6. d3 {[%clk 0:02:54]}  Bg4 {[%clk 0:02:56]} 7. c3 {[%clk 0:02:52]}  dxe4 {[%clk 0:02:56]} 8. dxe4 {[%clk 0:02:53]}  Bxf3 {[%clk 0:02:53]} 9. Bxf3 {[%clk 0:02:48]}  Qxd1 {[%clk 0:02:38]} 10. Rxd1 {[%clk 0:02:48]}  e5 {[%clk 0:02:39]} 11. Na3 {[%clk 0:02:41]}  Nf6 {[%clk 0:02:27]} 12. fxe5 {[%clk 0:02:34]}  Nxe5 {[%clk 0:02:26]} 13. Nb5 {[%clk 0:02:25]}  O-O {[%clk 0:02:25]} 14. Bf4 {[%clk 0:02:25]}  Nxf3+ {[%clk 0:02:18]} 15. gxf3 {[%clk 0:02:26]}  a6 {[%clk 0:02:18]} 16. Nc7 {[%clk 0:02:19]}  Rac8 {[%clk 0:01:58]} 17. h3 {[%clk 0:02:19]}  Rfd8 {[%clk 0:01:54]} 18. Kf2 {[%clk 0:02:11]}  h6 {[%clk 0:01:48]} 19. Ke2 {[%clk 0:02:08]}  Bf8 {[%clk 0:01:32]} 20. Rd2 {[%clk 0:02:06]}  Rxd2+ {[%clk 0:01:28]} 21. Kxd2 {[%clk 0:02:07]}  Nh5 {[%clk 0:01:27]} 22. Bh2 {[%clk 0:02:06]}  Rd8+ {[%clk 0:01:25]} 23. Ke2 {[%clk 0:02:06]}  Bd6 {[%clk 0:01:24]} 24. Rd1 {[%clk 0:02:06]}  Bxc7 {[%clk 0:01:24]} 25. Bxc7 {[%clk 0:02:05]}  Rxd1 {[%clk 0:01:22]} 26. Kxd1 {[%clk 0:02:06]}  Nf6 {[%clk 0:01:02]} 27. Bd6 {[%clk 0:02:01]}  Nd7 {[%clk 0:01:02]} 28. Kc2 {[%clk 0:02:01]}  f5 {[%clk 0:00:58]} 29. Kd3 {[%clk 0:01:54]}  b5 {[%clk 0:00:53]} 30. a4 {[%clk 0:01:52]}  Kf7 {[%clk 0:00:53]} 31. axb5 {[%clk 0:01:47]}  axb5 {[%clk 0:00:54]} 32. b4 {[%clk 0:01:46]}  cxb4 {[%clk 0:00:54]} 33. Bxb4 {[%clk 0:01:46]}  Ke6 {[%clk 0:00:55]} 34. Kd4 {[%clk 0:01:46]}  Ne5 {[%clk 0:00:43]} 35. f4 {[%clk 0:01:42]}  Nf3+ {[%clk 0:00:43]} 36. Ke3 {[%clk 0:01:41]}  fxe4 {[%clk 0:00:43]} 37. Kxe4 {[%clk 0:01:41]}  Nd2+ {[%clk 0:00:37]} 38. Kd3 {[%clk 0:01:40]}  Nc4 {[%clk 0:00:28]} 39. Bf8 {[%clk 0:01:39]}  h5 {[%clk 0:00:27]} 40. Kd4 {[%clk 0:01:38]}  Nd2 {[%clk 0:00:23]} 41. Bh6 {[%clk 0:01:34]}  Kd6 {[%clk 0:00:20]} 42. f5 {[%clk 0:01:31]}  gxf5 {[%clk 0:00:21]} 43. Bxd2 {[%clk 0:01:30]}  Ke6 {[%clk 0:00:18]} 44. Bf4 {[%clk 0:01:30]} 1-0


[Site "https://www.chess.com"]

[Event "Titled Tuesday Blitz November 22 Early 2022"]
[White "Kulkarni, Vikramaditya"]
[Black "Melikyan, Gnel"]
[WhiteFideId "5009847"]
[BlackFideId "54109990"]
[WhiteElo "2273"]
[BlackElo "2138"]
[Result "1/2-1/2"]
[Round "01"]
[TimeControl "180+1"]
[Date "2022.11.23"]
[WhiteClock "0:00:18"]
[BlackClock "0:00:09"]

1. e4 {[%clk 0:02:57]}  c5 {[%clk 0:02:53]} 2. Nf3 {[%clk 0:02:57]}  Nc6 {[%clk 0:02:51]} 3. d4 {[%clk 0:02:57]}  cxd4 {[%clk 0:02:51]} 4. Nxd4 {[%clk 0:02:57]}  Nf6 {[%clk 0:02:45]} 5. Nc3 {[%clk 0:02:57]}  g6 {[%clk 0:02:43]} 6. Nxc6 {[%clk 0:02:53]}  dxc6 {[%clk 0:02:43]} 7. Qxd8+ {[%clk 0:02:52]}  Kxd8 {[%clk 0:02:43]} 8. Bg5 {[%clk 0:02:41]}  Bg7 {[%clk 0:02:08]} 9. O-O-O+ {[%clk 0:02:40]}  Ke8 {[%clk 0:02:05]} 10. Bc4 {[%clk 0:02:36]}  Ng4 {[%clk 0:01:37]} 11. h3 {[%clk 0:02:34]}  Nxf2 {[%clk 0:01:25]} 12. Bxf7+ {[%clk 0:02:33]}  Kxf7 {[%clk 0:01:25]} 13. Rhf1 {[%clk 0:02:33]}  Be6 {[%clk 0:01:15]} 14. Rxf2+ {[%clk 0:02:32]}  Ke8 {[%clk 0:01:14]} 15. Na4 {[%clk 0:02:28]}  b6 {[%clk 0:00:58]} 16. b3 {[%clk 0:02:28]}  Rd8 {[%clk 0:00:51]} 17. Rxd8+ {[%clk 0:02:27]}  Kxd8 {[%clk 0:00:51]} 18. Nb2 {[%clk 0:02:27]}  Rf8 {[%clk 0:00:43]} 19. Rxf8+ {[%clk 0:02:25]}  Bxf8 {[%clk 0:00:44]} 20. Nd3 {[%clk 0:02:25]}  Bg7 {[%clk 0:00:44]} 21. Kd2 {[%clk 0:02:24]}  Kd7 {[%clk 0:00:42]} 22. Ke3 {[%clk 0:02:21]}  c5 {[%clk 0:00:38]} 23. Nf4 {[%clk 0:02:17]}  Bf7 {[%clk 0:00:35]} 24. Nd3 {[%clk 0:02:06]}  Bd4+ {[%clk 0:00:29]} 25. Ke2 {[%clk 0:02:04]}  c4 {[%clk 0:00:29]} 26. Nf4 {[%clk 0:01:57]}  e5 {[%clk 0:00:25]} 27. Bf6 {[%clk 0:01:43]}  cxb3 {[%clk 0:00:22]} 28. cxb3 {[%clk 0:01:42]}  exf4 {[%clk 0:00:13]} 29. Bxd4 {[%clk 0:01:41]}  Ke6 {[%clk 0:00:14]} 30. Kf3 {[%clk 0:01:37]}  g5 {[%clk 0:00:14]} 31. Kg4 {[%clk 0:01:37]}  h6 {[%clk 0:00:13]} 32. h4 {[%clk 0:01:37]}  Bg6 {[%clk 0:00:10]} 33. hxg5 {[%clk 0:01:16]}  hxg5 {[%clk 0:00:11]} 34. e5 {[%clk 0:01:15]}  Be4 {[%clk 0:00:04]} 35. Kxg5 {[%clk 0:01:15]}  Bxg2 {[%clk 0:00:04]} 36. Kxf4 {[%clk 0:01:15]}  Bd5 {[%clk 0:00:03]} 37. Ke3 {[%clk 0:01:13]}  a5 {[%clk 0:00:03]} 38. Bxb6 {[%clk 0:01:11]}  a4 {[%clk 0:00:04]} 39. Bd4 {[%clk 0:01:02]}  axb3 {[%clk 0:00:04]} 40. a4 {[%clk 0:01:02]}  Bc4 {[%clk 0:00:04]} 41. Kd2 {[%clk 0:00:59]}  Kd5 {[%clk 0:00:04]} 42. Bb2 {[%clk 0:00:57]}  Ba6 {[%clk 0:00:03]} 43. a5 {[%clk 0:00:53]}  Bc8 {[%clk 0:00:03]} 44. Bc3 {[%clk 0:00:52]}  Ba6 {[%clk 0:00:03]} 45. Kc1 {[%clk 0:00:52]}  Kc4 {[%clk 0:00:03]} 46. Kb2 {[%clk 0:00:51]}  Bc8 {[%clk 0:00:03]} 47. Be1 {[%clk 0:00:49]}  Kd4 {[%clk 0:00:03]} 48. Bg3 {[%clk 0:00:48]}  Kc4 {[%clk 0:00:04]} 49. Bf2 {[%clk 0:00:45]}  Kb4 {[%clk 0:00:05]} 50. Be1+ {[%clk 0:00:45]}  Kc4 {[%clk 0:00:05]} 51. Bc3 {[%clk 0:00:44]}  Be6 {[%clk 0:00:02]} 52. a6 {[%clk 0:00:43]}  Bd5 {[%clk 0:00:01]} 53. a7 {[%clk 0:00:43]}  Kb5 {[%clk 0:00:02]} 54. Be1 {[%clk 0:00:41]}  Ka6 {[%clk 0:00:02]} 55. Bf2 {[%clk 0:00:40]}  Kb7 {[%clk 0:00:03]} 56. Bd4 {[%clk 0:00:38]}  Ka8 {[%clk 0:00:04]} 57. Ka3 {[%clk 0:00:37]}  Be6 {[%clk 0:00:04]} 58. Kb2 {[%clk 0:00:36]}  Bf7 {[%clk 0:00:05]} 59. Kc3 {[%clk 0:00:33]}  Be6 {[%clk 0:00:06]} 60. Kb4 {[%clk 0:00:30]}  Bf7 {[%clk 0:00:07]} 61. Kb5 {[%clk 0:00:27]}  Be6 {[%clk 0:00:08]} 62. Kc6 {[%clk 0:00:27]}  Bg8 {[%clk 0:00:08]} 63. Kd6 {[%clk 0:00:25]}  Bc4 {[%clk 0:00:08]} 64. e6 {[%clk 0:00:17]}  Bxe6 {[%clk 0:00:08]} 65. Kxe6 {[%clk 0:00:18]}  b2 {[%clk 0:00:08]} 66. Bxb2 {[%clk 0:00:18]}  Kxa7 {[%clk 0:00:09]} 1/2-1/2


[Site "https://www.chess.com"]